bitfinex/quotes_BTCUSD_20250615
["timestamp","ask_amount","ask_price","bid_price","bid_amount"]
[1749993997897,0.9058369,105730.0,105720.0,0.25265472]
[1749993999331,1.10445593,105730.0,105720.0,0.2431964]
[1749993999541,0.91529486,105730.0,105720.0,0.26211331]
[1749993999754,0.91529486,105730.0,105720.0,0.2526549]
[1749993999986,1.10445593,105730.0,105720.0,0.22569648]
[1749994000195,1.18169013,105730.0,105720.0,0.0176]
[1749994000402,0.02837611,105720.0,105710.0,0.39217057]
[1749994000617,0.57529853,105720.0,105710.0,0.38271136]
[1749994000830,1.29248362,105720.0,105710.0,0.22571145]
[1749994001039,0.54692251,105720.0,105710.0,0.26213005]
[1749994001271,0.56583915,105720.0,105710.0,0.26213005]
[1749994001969,0.57529782,105720.0,105710.0,0.26213005]
[1749994002174,0.55638056,105720.0,105710.0,0.26213005]
[1749994002380,0.56583906,105720.0,105710.0,0.26213005]
[1749994003000,0.57529782,105720.0,105710.0,0.26213005]
[1749994003205,0.00945814,105720.0,105710.0,0.26213005]
[1749994003415,0.34945733,105730.0,105720.0,0.2446133]
[1749994003620,0.9058369,105730.0,105720.0,0.2621133]
[1749994003842,0.91529486,105730.0,105720.0,0.2621133]
[1749994004082,0.91529486,105730.0,105720.0,0.25265498]
[1749994004284,1.10445665,105730.0,105720.0,0.24319657]
[1749994004492,1.10445665,105730.0,105720.0,0.25265516]
[1749994004911,1.11333471,105730.0,105720.0,0.23515516]
[1749994005124,1.11333471,105730.0,105720.0,0.22569657]
[1749994005329,1.11185471,105730.0,105720.0,0.22569657]
[1749994005752,1.10297665,105730.0,105720.0,0.23515516]
[1749994006171,1.10297665,105730.0,105720.0,0.26141357]
[1749994006385,0.91381558,105730.0,105720.0,0.26141357]
[1749994006592,0.90435753,105730.0,105720.0,0.26141357]
[1749994006799,1.10239663,105730.0,105720.0,0.22569657]
[1749994007217,1.10297665,105730.0,105720.0,0.23515507]
[1749994007425,1.11185505,105730.0,105720.0,0.23515516]
[1749994007631,0.90435753,105730.0,105720.0,0.24461366]
[1749994007819,0.90435753,105730.0,105720.0,0.25407207]
[1749994008053,0.89489957,105730.0,105720.0,0.25407145]
[1749994008260,0.90377797,105730.0,105720.0,0.23515472]
[1749994008464,0.89489957,105730.0,105720.0,0.23515472]
[1749994008671,0.90435762,105730.0,105720.0,0.23515472]
[1749994009231,0.90435762,105730.0,105720.0,0.24461313]
[1749994009853,0.90435762,105730.0,105720.0,0.23515472]
[1749994010065,0.90435762,105730.0,105720.0,0.22569622]
[1749994010398,0.90435762,105730.0,105720.0,0.23515472]
[1749994011242,0.90435762,105730.0,105720.0,0.24289622]
[1749994011425,0.90435762,105730.0,105720.0,0.25235472]
[1749994011918,0.90435762,105730.0,105720.0,0.26181313]
[1749994012126,0.8759841,105730.0,105720.0,0.27127145]
[1749994012330,0.88544152,105730.0,105720.0,0.27127145]
[1749994012557,0.54692143,105730.0,105720.0,0.27127145]
[1749994012777,0.5374641,105730.0,105720.0,0.27127145]
[1749994012982,0.54692143,105730.0,105720.0,0.27127145]
[1749994013190,0.55579927,105730.0,105720.0,0.27127145]
[1749994013843,0.5374641,105730.0,105720.0,0.27127145]
[1749994014092,0.54692134,105730.0,105720.0,0.27127145]
[1749994014300,0.89954552,105740.0,105730.0,0.25253414]
[1749994014509,0.91845921,105740.0,105730.0,0.25253414]
[1749994014723,0.91845921,105740.0,105730.0,0.40945414]
[1749994014933,0.38041565,105740.0,105730.0,0.40945414]
[1749994015151,0.91787975,105740.0,105730.0,0.40945414]
[1749994015788,0.90900223,105740.0,105730.0,0.40945414]
[1749994015996,0.92733655,105740.0,105730.0,0.40945414]
[1749994016695,0.02150222,105740.0,105730.0,0.94691824]
[1749994016910,0.00945554,105750.0,105740.0,0.25251357]
[1749994017118,0.88691964,105750.0,105740.0,0.25251357]
[1749994017324,0.89579615,105750.0,105740.0,0.25251357]
[1749994017975,0.88634061,105750.0,105740.0,0.25251357]
[1749994018189,0.89579562,105750.0,105740.0,0.25251357]
[1749994018397,0.88634016,105750.0,105740.0,0.25251357]
[1749994018608,0.8774641,105750.0,105740.0,0.25251357]
[1749994018819,0.54634016,105750.0,105740.0,0.25251357]
[1749994019033,0.02836521,105760.0,105750.0,0.23539326]
[1749994019259,0.90597125,105760.0,105750.0,0.22593754]
[1749994019465,0.59628856,105760.0,105750.0,0.23539344]
[1749994019674,0.58741272,105760.0,105750.0,0.25430497]
[1749994019884,0.93628838,105760.0,105750.0,0.25430434]
[1749994020098,0.93628902,105760.0,105750.0,0.23539299]
[1749994020314,0.92741326,105760.0,105750.0,0.23539299]
[1749994020569,0.38049388,105760.0,105750.0,0.23539281]
[1749994020784,0.91737825,105760.0,105750.0,0.25359281]
[1749994020995,0.91737826,105760.0,105750.0,0.25359281]
[1749994021413,0.91737814,105760.0,105750.0,0.25359281]
[1749994021830,0.91795789,105760.0,105750.0,0.25359281]
[1749994022032,0.93628843,105760.0,105750.0,0.25359281]
[1749994022455,0.94574371,105760.0,105750.0,0.2535929]
[1749994022674,1.1253962,105760.0,105750.0,0.23468155]
[1749994022889,0.90850297,105760.0,105750.0,0.26304907]
[1749994023114,0.91737832,105760.0,105750.0,0.26304907]
[1749994023339,1.11594119,105760.0,105750.0,0.22522529]
[1749994023559,0.37991445,105760.0,105750.0,0.26304907]
[1749994023783,1.08371388,105760.0,105750.0,0.25359344]
[1749994024042,0.92683388,105760.0,105750.0,0.25359344]
[1749994024263,1.06538297,105760.0,105750.0,0.27250497]
[1749994024544,1.06237869,105760.0,105750.0,0.27250497]
[1749994024757,1.05350315,105760.0,105750.0,0.27250497]
[1749994024973,1.06237833,105760.0,105750.0,0.26334916]
[1749994025185,0.90549824,105760.0,105750.0,0.26334916]
[1749994025400,1.05288323,105760.0,105750.0,0.26334916]
[1749994025626,1.06233797,105760.0,105750.0,0.26334916]
[1749994025831,1.05346243,105760.0,105750.0,0.26334916]
[1749994026053,0.02836717,105750.0,105740.0,0.20624318]
[1749994026266,0.55637528,105750.0,105740.0,0.23461349]
[1749994026480,0.57470708,105750.0,105740.0,0.23461349]
[1749994026687,0.56583118,105750.0,105740.0,0.23461349]
[1749994026906,0.5747071,105750.0,105740.0,0.23461349]
[1749994027154,0.55751357,105740.0,105730.0,0.0171]
[1749994027417,0.20807636,105730.0,105720.0,0.29272704]
[1749994027637,0.75499797,105730.0,105720.0,0.31928571]
[1749994027862,0.75499797,105730.0,105720.0,0.3287443]
[1749994028085,0.75499797,105730.0,105720.0,0.0171]
[1749994028298,0.75499797,105730.0,105710.0,0.25317075]
[1749994028299,0.01891699,105720.0,105710.0,0.25317075]
[1749994028542,0.01891699,105720.0,105710.0,0.2437119]
[1749994028543,0.7550189,105720.0,105710.0,0.2437119]
[1749994028759,0.7550189,105720.0,105710.0,0.20811626]
[1749994028976,0.74556067,105720.0,105710.0,0.20811626]
[1749994029195,0.74556067,105720.0,105710.0,0.21757592]
[1749994029427,0.84033114,105720.0,105710.0,0.21757592]
[1749994029656,0.84033114,105720.0,105710.0,0.22717734]
[1749994030276,0.65115218,105720.0,105710.0,0.23663601]
[1749994030500,0.65115218,105720.0,105710.0,0.25373601]
[1749994031161,0.66061112,105720.0,105710.0,0.25373601]
[1749994031834,0.84979008,105720.0,105710.0,0.2348175]
[1749994032056,0.84979008,105720.0,105710.0,0.24427689]
[1749994032527,0.52916107,105730.0,105720.0,0.2251964]
[1749994032742,1.06267762,105730.0,105720.0,0.23465472]
[1749994032956,1.08159309,105730.0,105720.0,0.23465472]
[1749994033175,1.26129674,105730.0,105720.0,0.2251964]
[1749994033394,1.25183905,105730.0,105720.0,0.22519657]
[1749994033629,1.25183905,105730.0,105720.0,0.23465524]
[1749994033812,1.33079617,105730.0,105720.0,0.23465524]
[1749994034483,0.89637993,105730.0,105720.0,0.25357215]
[1749994034698,1.09499905,105730.0,105720.0,0.27077233]
[1749994035576,1.09499905,105730.0,105720.0,0.27077189]
[1749994036534,1.09499905,105730.0,105720.0,0.26131348]
[1749994037128,1.09499905,105730.0,105720.0,0.25185498]
[1749994037339,1.09828484,105730.0,105720.0,0.24239639]
[1749994037958,1.09828484,105730.0,105720.0,0.25185498]
[1749994038597,1.10716281,105730.0,105720.0,0.25185498]
[1749994038797,1.26396281,105730.0,105720.0,0.25185498]
[1749994039221,1.26396282,105730.0,105720.0,0.25185498]
[1749994040099,1.26396282,105730.0,105720.0,0.23293772]
[1749994040306,1.24562679,105730.0,105720.0,0.23293772]
[1749994040520,1.09770499,105730.0,105720.0,0.23293772]
[1749994040726,1.23234337,105730.0,105720.0,0.24239639]
[1749994040933,1.22346517,105730.0,105720.0,0.24239639]
[1749994041788,1.23234325,105730.0,105720.0,0.22347896]
[1749994041991,1.23234328,105730.0,105720.0,0.24239675]
[1749994042200,1.3284925,105730.0,105720.0,0.26131392]
[1749994042408,0.0094585,105720.0,105710.0,0.39959793]
[1749994042620,0.5469226,105720.0,105710.0,0.24275793]
[1749994042828,0.5374641,105720.0,105710.0,0.25221633]
[1749994043242,0.55638065,105720.0,105710.0,0.25221633]
[1749994043865,0.56583924,105720.0,105710.0,0.25221633]
[1749994045004,0.55638065,105720.0,105710.0,0.25221633]
[1749994045188,0.56583915,105720.0,105710.0,0.25221633]
[1749994045445,0.57529791,105720.0,105710.0,0.25221633]
[1749994045657,0.56583915,105720.0,105710.0,0.25221633]
[1749994045866,0.57529791,105720.0,105710.0,0.25221633]
[1749994046076,0.57529782,105720.0,105710.0,0.25221633]
[1749994046320,0.00945814,105720.0,105710.0,0.25221633]
[1749994046505,0.55638047,105720.0,105710.0,0.25221633]
[1749994046941,0.56583897,105720.0,105710.0,0.25221633]
[1749994047390,0.55638047,105720.0,105710.0,0.25221633]
[1749994047648,0.56583897,105720.0,105710.0,0.25221633]
[1749994047860,0.02837478,105720.0,105710.0,0.25221633]
[1749994048069,0.56583888,105720.0,105710.0,0.25221633]
[1749994048496,0.56583879,105720.0,105710.0,0.25221633]
[1749994048806,0.57529729,105720.0,105710.0,0.25221633]
[1749994049647,0.5374641,105720.0,105710.0,0.25221633]
[1749994049862,0.54692233,105720.0,105710.0,0.25221633]
[1749994050071,0.72379252,105730.0,105720.0,0.21755498]
[1749994050277,1.27013462,105730.0,105720.0,0.23535498]
[1749994050454,1.11333462,105730.0,105720.0,0.23535498]
[1749994050661,1.11333461,105730.0,105720.0,0.23535498]
[1749994050866,1.09499929,105730.0,105720.0,0.22589657]
[1749994051046,1.09441968,105730.0,105720.0,0.22589657]
[1749994051242,1.08554169,105730.0,105720.0,0.22589657]
[1749994051700,1.09441969,105730.0,105720.0,0.22589657]
[1749994052091,1.08554169,105730.0,105720.0,0.22589657]
[1749994052310,1.09441969,105730.0,105720.0,0.22589657]
[1749994053072,1.08554169,105730.0,105720.0,0.22589657]
[1749994053275,1.09441969,105730.0,105720.0,0.22589657]
[1749994053688,1.08554169,105730.0,105720.0,0.22589657]
[1749994053892,1.09441969,105730.0,105720.0,0.22589657]
[1749994054101,1.08496191,105730.0,105720.0,0.0178]
[1749994054303,1.07550386,105730.0,105720.0,0.0178]
[1749994054519,1.16277508,105730.0,105720.0,0.0178]
[1749994054932,1.17165315,105730.0,105720.0,0.0178]
[1749994055205,1.17165336,105730.0,105720.0,0.0178]
[1749994056018,0.54809666,105720.0,105710.0,0.20753879]
[1749994056249,1.09501943,105720.0,105710.0,0.21699854]
[1749994056461,1.18170998,105720.0,105710.0,0.21699854]
[1749994056667,1.17225122,105720.0,105710.0,0.20753879]
[1749994056870,1.32901122,105720.0,105710.0,0.20753879]
[1749994057094,1.32901122,105720.0,105710.0,0.21699863]
[1749994057290,1.32901122,105720.0,105710.0,0.02780178]
[1749994057494,1.31955228,105720.0,105710.0,0.02780178]
[1749994057987,1.35225228,105720.0,105710.0,0.00014194]
[1749994059054,1.33795228,105720.0,105710.0,0.00014194]
[1749994059474,1.31955228,105720.0,105710.0,0.02800178]
[1749994059686,1.32843131,105720.0,105710.0,0.02800178]
[1749994059896,1.32843131,105720.0,105710.0,0.21719863]
[1749994060108,1.32843131,105720.0,105710.0,0.22665838]
[1749994060320,1.31955228,105720.0,105710.0,0.22665838]
[1749994060776,1.31955228,105720.0,105710.0,0.21719863]
[1749994061222,1.31955228,105720.0,105710.0,0.02800178]
[1749994061435,1.32843136,105720.0,105710.0,0.01854194]
[1749994061643,1.31955228,105720.0,105710.0,0.20773879]
[1749994061859,1.3284313,105720.0,105710.0,0.01854194]
[1749994062064,1.31955228,105720.0,105710.0,0.01854194]
[1749994062737,1.08494306,105720.0,105710.0,0.00014194]
[1749994062990,1.23228206,105720.0,105710.0,0.01854194]
[1749994063208,1.08556058,105720.0,105710.0,0.24435802]
[1749994063428,1.09501952,105720.0,105710.0,0.24435802]
[1749994063851,1.26119793,105720.0,105710.0,0.2538175]
[1749994064264,1.26119793,105720.0,105710.0,0.24435802]
[1749994064476,1.25173952,105720.0,105710.0,0.24435802]
[1749994065230,1.24228085,105720.0,105710.0,0.23489845]
[1749994066653,1.22336306,105720.0,105710.0,0.01854194]
[1749994067098,1.31951228,105720.0,105710.0,0.01854194]
[1749994067509,1.34559132,105720.0,105710.0,0.00014194]
[1749994067690,1.33671228,105720.0,105710.0,0.00014194]
[1749994068101,1.34559155,105720.0,105710.0,0.00014194]
[1749994068306,1.88305569,105720.0,105710.0,0.00014194]
[1749994068516,1.89735569,105720.0,105710.0,0.00014194]
[1749994068718,1.89735591,105720.0,105710.0,0.00014194]
[1749994069143,1.89735595,105720.0,105710.0,0.00014194]
[1749994069346,1.89735594,105720.0,105710.0,0.00014194]
[1749994069672,1.89735606,105720.0,105710.0,0.00014194]
[1749994069882,1.8973561,105720.0,105710.0,0.00014194]
[1749994070300,1.89735608,105720.0,105710.0,0.00014194]
[1749994070575,1.87417638,105720.0,105710.0,0.00014194]
[1749994070942,1.88305607,105720.0,105710.0,0.00014194]
[1749994071147,1.91134835,105720.0,105710.0,0.00014194]
[1749994071360,1.91234835,105720.0,105710.0,0.00014194]
[1749994071564,1.90346866,105720.0,105710.0,0.00014194]
[1749994071791,1.91234835,105720.0,105710.0,0.00014194]
[1749994072642,1.91234842,105720.0,105710.0,0.00014194]
[1749994072843,1.91234843,105720.0,105710.0,0.00014194]
[1749994073051,1.90346866,105720.0,105710.0,0.00014194]
[1749994073261,1.91234861,105720.0,105710.0,0.00014194]
[1749994073469,1.90346866,105720.0,105710.0,0.00014194]
[1749994073682,1.91234843,105720.0,105710.0,0.00014194]
[1749994073885,1.90346866,105720.0,105710.0,0.00014194]
[1749994074088,1.91234837,105720.0,105710.0,0.00014194]
[1749994074312,1.90346866,105720.0,105710.0,0.00014194]
[1749994074497,1.91234837,105720.0,105710.0,0.00014194]
[1749994074902,1.91234846,105720.0,105710.0,0.00014194]
[1749994075106,1.90346866,105720.0,105710.0,0.00014194]
[1749994075309,1.91234852,105720.0,105710.0,0.00014194]
[1749994075519,1.90346866,105720.0,105710.0,0.00014194]
[1749994075918,1.91234852,105720.0,105710.0,0.00014194]
[1749994076129,1.8161993,105720.0,105710.0,0.00014194]
[1749994076326,1.81619929,105720.0,105710.0,0.00014194]
[1749994076532,1.79899929,105720.0,105710.0,0.01654194]
[1749994076741,1.7989993,105720.0,105710.0,0.01654194]
[1749994077153,1.79899929,105720.0,105710.0,0.01654194]
[1749994077520,1.85188649,105720.0,105710.0,0.01654194]
[1749994077768,1.84300664,105720.0,105710.0,0.01654194]
[1749994077973,1.8518865,105720.0,105710.0,0.01654194]
[1749994078190,1.85188648,105720.0,105710.0,0.01654194]
[1749994078849,1.85184648,105720.0,105710.0,0.01654194]
[1749994078985,1.85184649,105720.0,105710.0,0.01654194]
[1749994079193,1.85184648,105720.0,105710.0,0.01654194]
[1749994079597,1.84296664,105720.0,105710.0,0.01654194]
[1749994079771,1.85184648,105720.0,105710.0,0.01654194]
[1749994079974,1.84296664,105720.0,105710.0,0.01654194]
[1749994080382,1.85184649,105720.0,105710.0,0.01654194]
[1749994080598,1.84296664,105720.0,105710.0,0.01654194]
[1749994080799,1.85184647,105720.0,105710.0,0.01654194]
[1749994081018,1.8518465,105720.0,105710.0,0.01654194]
[1749994081286,1.8689465,105720.0,105710.0,0.00014194]
[1749994081492,1.96518824,105720.0,105710.0,0.00014194]
[1749994081893,1.9676444,105720.0,105710.0,0.00014194]
[1749994082119,1.97652427,105720.0,105710.0,0.01654194]
[1749994082321,1.97650641,105720.0,105710.0,0.01654194]
[1749994082738,1.97650642,105720.0,105710.0,0.01654194]
[1749994083404,1.97650641,105720.0,105710.0,0.01654194]
[1749994083606,1.9676444,105720.0,105710.0,0.01654194]
[1749994083816,1.97650641,105720.0,105710.0,0.01654194]
[1749994084030,1.76693921,105720.0,105710.0,0.01654194]
[1749994084231,1.96493921,105720.0,105710.0,0.01654194]
[1749994084675,1.3772931,105720.0,105710.0,0.03294194]
[1749994084882,1.2206131,105720.0,105710.0,0.03294194]
[1749994085087,1.25261534,105720.0,105710.0,0.03294194]
[1749994086494,1.09593534,105720.0,105710.0,0.03294194]
[1749994086695,1.25261534,105720.0,105710.0,0.03294194]
[1749994088071,1.09593534,105720.0,105710.0,0.03294194]
[1749994088230,1.25261534,105720.0,105710.0,0.03294194]
[1749994088442,1.26148165,105720.0,105710.0,0.03294194]
[1749994089206,1.25261534,105720.0,105710.0,0.03294194]
[1749994089343,1.26148165,105720.0,105710.0,0.03294194]
[1749994089518,1.28573192,105720.0,105710.0,0.03294194]
[1749994089722,1.29459823,105720.0,105710.0,0.03294194]
[1749994089919,1.28573192,105720.0,105710.0,0.03294194]
[1749994090365,1.28573192,105720.0,105710.0,0.01654194]
[1749994090366,1.83206233,105720.0,105710.0,0.01654194]
[1749994090566,1.83207177,105720.0,105710.0,0.01654194]
[1749994090798,1.82319602,105720.0,105710.0,0.01654194]
[1749994091008,1.83207173,105720.0,105710.0,0.01654194]
[1749994091353,1.82319602,105720.0,105710.0,0.01654194]
[1749994091769,1.83207174,105720.0,105710.0,0.01654194]
[1749994091966,1.84913182,105720.0,105710.0,0.00014194]
[1749994092104,1.84913214,105720.0,105710.0,0.00014194]
[1749994092513,1.84025602,105720.0,105710.0,0.00014194]
[1749994092738,1.84913214,105720.0,105710.0,0.00014194]
[1749994093365,1.9453739,105720.0,105710.0,0.00014194]
[1749994093570,1.94769778,105720.0,105710.0,0.00014194]
[1749994093778,1.95657435,105720.0,105710.0,0.00014194]
[1749994093922,1.9760568,105720.0,105710.0,0.00014194]
[1749994094124,1.98493344,105720.0,105710.0,0.00014194]
[1749994094796,1.9760568,105720.0,105710.0,0.00014194]
[1749994095001,1.98493345,105720.0,105710.0,0.00014194]
[1749994095226,1.9760568,105720.0,105710.0,0.00014194]
[1749994095409,1.98493344,105720.0,105710.0,0.00014194]
[1749994095580,1.9760568,105720.0,105710.0,0.00014194]
[1749994095798,1.98493344,105720.0,105710.0,0.00014194]
[1749994095993,2.01505344,105720.0,105710.0,0.00014194]
[1749994096961,2.0061768,105720.0,105710.0,0.00014194]
[1749994097165,7.0561768,105720.0,105710.0,0.00014194]
[1749994097374,6.8582168,105720.0,105710.0,0.00014194]
[1749994097574,7.0560968,105720.0,105710.0,0.00014194]
[1749994100998,7.0845348,105720.0,105710.0,0.00014194]
[1749994102720,6.83643822,105720.0,105710.0,0.01704194]
[1749994102966,7.03427822,105720.0,105710.0,0.01704194]
[1749994104128,7.00584022,105720.0,105710.0,0.01704194]
[1749994113290,7.00584022,105720.0,105710.0,0.00014194]
[1749994113446,7.02234022,105720.0,105710.0,0.00014194]
[1749994113668,7.14692744,105720.0,105710.0,0.00014194]
[1749994114531,7.14592744,105720.0,105710.0,0.00014194]
[1749994115251,7.14992744,105720.0,105710.0,0.00014194]
[1749994115672,1.08558018,105710.0,105700.0,0.0171]
[1749994115878,1.33838194,105710.0,105700.0,0.01724208]
[1749994116187,1.43453116,105710.0,105700.0,0.01724208]
[1749994116599,1.43453116,105710.0,105700.0,0.03474208]
[1749994117082,1.43553116,105710.0,105700.0,0.03474208]
[1749994117700,1.43653116,105710.0,105700.0,0.03474208]
[1749994119479,1.43653116,105710.0,105700.0,0.01724208]
[1749994123052,1.43653116,105710.0,105700.0,0.03454208]
[1749994123261,1.47773116,105710.0,105700.0,0.03454208]
[1749994123461,1.27997116,105710.0,105700.0,0.03454208]
[1749994123602,1.43649116,105710.0,105700.0,0.03454208]
[1749994124453,1.27997116,105710.0,105700.0,0.03454208]
[1749994124657,1.43649116,105710.0,105700.0,0.03454208]
[1749994125433,7.04065526,105710.0,105700.0,0.00014208]
[1749994125649,6.5286053,105710.0,105700.0,0.00014208]
[1749994125867,6.53155018,105710.0,105700.0,0.00014208]
[1749994126494,6.53055018,105710.0,105700.0,0.00014208]
[1749994126699,6.53255018,105710.0,105700.0,0.00014208]
[1749994126907,6.5703622,105710.0,105700.0,0.00014208]
[1749994127325,6.5693622,105710.0,105700.0,0.00014208]
[1749994127528,6.57271018,105710.0,105700.0,0.00014208]
[1749994127812,6.57671018,105710.0,105700.0,0.00014208]
[1749994128049,0.5386753,105700.0,105690.0,0.0175]
[1749994128254,0.22712053,105670.0,105660.0,0.28379862]
[1749994128470,0.76458463,105670.0,105660.0,0.29326258]
[1749994128697,0.76458463,105670.0,105660.0,0.31076258]
[1749994129106,1.10458463,105670.0,105660.0,0.31076258]
[1749994129348,1.10458463,105670.0,105660.0,0.30129862]
[1749994129574,1.20073385,105670.0,105660.0,0.29230838]
[1749994130001,1.09512202,105670.0,105660.0,0.29230838]
[1749994130686,1.09512202,105670.0,105660.0,0.29630838]
[1749994131101,1.25315567,105670.0,105660.0,0.02397381]
[1749994131366,1.25315567,105670.0,105660.0,0.04147381]
[1749994131802,1.25315567,105670.0,105660.0,0.03947381]
[1749994132014,1.34930489,105670.0,105660.0,0.03547381]
[1749994132222,1.34930489,105670.0,105660.0,0.03947381]
[1749994132643,1.25315567,105670.0,105660.0,0.03947381]
[1749994133258,1.34939743,105670.0,105660.0,0.04147381]
[1749994133466,1.34939743,105670.0,105660.0,0.03747381]
[1749994133669,1.34939743,105670.0,105660.0,0.03547381]
[1749994133877,1.44554665,105670.0,105660.0,0.03547381]
[1749994134462,6.49554665,105670.0,105660.0,0.03547381]
[1749994135879,6.39939743,105670.0,105660.0,0.03547381]
[1749994141810,6.39939743,105670.0,105660.0,0.01797381]
[1749994142227,6.24287743,105670.0,105660.0,0.01797381]
[1749994142427,6.39939743,105670.0,105660.0,0.01797381]
[1749994142703,6.24287743,105670.0,105660.0,0.01797381]
[1749994142915,6.49550665,105670.0,105660.0,0.01797381]
[1749994143247,6.33902665,105670.0,105660.0,0.01797381]
[1749994143426,6.00636336,105670.0,105660.0,0.01797381]
[1749994143656,6.35211183,105670.0,105660.0,0.01797381]
[1749994143865,6.36157498,105670.0,105660.0,0.01797381]
[1749994144700,6.40438912,105670.0,105660.0,0.01797381]
[1749994144907,6.37897498,105670.0,105660.0,0.01797381]
[1749994145118,6.36157498,105670.0,105660.0,0.01797381]
[1749994146131,6.36257498,105670.0,105660.0,0.01797381]
[1749994146341,6.36457498,105670.0,105660.0,0.01797381]
[1749994146998,6.20809498,105670.0,105660.0,0.01797381]
[1749994147202,1.21833322,105670.0,105660.0,0.03477381]
[1749994152314,0.70918815,105670.0,105660.0,0.03477381]
[1749994152552,1.24665225,105670.0,105660.0,0.03477381]
[1749994154205,1.09017225,105670.0,105660.0,0.03477381]
[1749994154387,1.24661225,105670.0,105660.0,0.04423812]
[1749994154586,0.55270815,105670.0,105660.0,0.24298856]
[1749994154927,1.24661225,105670.0,105660.0,0.24298856]
[1749994155344,1.2371491,105670.0,105660.0,0.24298856]
[1749994155559,1.2371491,105670.0,105660.0,0.23352451]
[1749994155792,1.2371491,105670.0,105660.0,0.24298873]
[1749994156867,1.2371491,105670.0,105660.0,0.25245278]
[1749994157487,1.0807091,105670.0,105660.0,0.25245278]
[1749994157719,1.2371491,105670.0,105660.0,0.25245278]
[1749994157931,0.35397653,105670.0,105660.0,0.27138043]
[1749994158132,0.91036648,105670.0,105660.0,0.27138043]
[1749994158841,0.91982972,105670.0,105660.0,0.27138043]
[1749994159259,0.91882972,105670.0,105660.0,0.27138043]
[1749994159463,0.91682972,105670.0,105660.0,0.27138043]
[1749994159621,1.11556161,105670.0,105660.0,0.24298865]
[1749994159821,1.21171083,105670.0,105660.0,0.24298865]
[1749994160026,1.19278498,105670.0,105660.0,0.03477381]
[1749994160343,1.09663576,105670.0,105660.0,0.03477381]
[1749994160888,0.75663576,105670.0,105660.0,0.03477381]
[1749994161107,0.75663576,105670.0,105660.0,0.24298865]
[1749994162043,0.90361252,105670.0,105660.0,0.23352451]
[1749994163332,0.8941491,105670.0,105660.0,0.04423812]
[1749994163847,0.99029832,105670.0,105660.0,0.04423812]
[1749994164007,0.8941491,105670.0,105660.0,0.04423812]
[1749994164205,5.9441491,105670.0,105660.0,0.03477381]
[1749994164407,5.9441491,105670.0,105660.0,0.01797381]
[1749994167330,5.9612491,105670.0,105660.0,0.01797381]
[1749994167533,6.03291964,105670.0,105660.0,0.01797381]
[1749994169265,5.9612491,105670.0,105660.0,0.01797381]
[1749994170637,6.3012491,105670.0,105660.0,0.01797381]
[1749994171041,6.2841491,105670.0,105660.0,0.01797381]
[1749994171243,6.3004491,105670.0,105660.0,0.01797381]
[1749994171469,6.39669086,105670.0,105660.0,0.00047381]
[1749994172081,6.41799098,105670.0,105660.0,0.00047381]
[1749994172289,6.44631265,105670.0,105660.0,0.00047381]
[1749994173573,6.42501253,105670.0,105660.0,0.00047381]
[1749994175832,6.42501253,105670.0,105660.0,0.01687381]
[1749994177302,6.42501253,105670.0,105660.0,0.00047381]
[1749994178043,6.42501253,105670.0,105660.0,0.01687381]
[1749994179099,6.42471253,105670.0,105660.0,0.00047381]
[1749994179302,6.34842175,105670.0,105660.0,0.00047381]
[1749994179532,6.54590175,105670.0,105660.0,0.01687381]
[1749994180186,0.19875053,105660.0,105650.0,0.0164]
[1749994180421,0.19875053,105660.0,105630.0,0.0168]
[1749994180422,0.54826531,105640.0,105630.0,0.0168]
[1749994180647,1.80788726,105640.0,105630.0,0.0168]
[1749994180906,1.77955351,105640.0,105630.0,0.0168]
[1749994182764,1.8072973,105640.0,105630.0,0.0168]
[1749994183485,1.8072973,105640.0,105630.0,0.0337]
[1749994183968,6.8572973,105640.0,105630.0,0.0337]
[1749994184200,6.95344652,105640.0,105630.0,0.0169]
[1749994186092,6.95344652,105640.0,105630.0,0.03452719]
[1749994186306,6.3198332,105640.0,105630.0,0.0328]
[1749994186514,6.3198332,105640.0,105630.0,0.05042716]
[1749994186720,1.08572941,105640.0,105630.0,0.24923414]
[1749994186932,0.36839743,105640.0,105630.0,0.26816547]
[1749994187143,0.34946539,105640.0,105630.0,0.27763185]
[1749994187350,0.34946548,105640.0,105630.0,0.35624838]
[1749994187770,0.36839689,105640.0,105630.0,0.35624838]
[1749994188188,0.90586099,105640.0,105630.0,0.35624838]
[1749994188394,0.34946548,105640.0,105630.0,0.35624838]
[1749994188599,0.89639524,105640.0,105630.0,0.35624838]
[1749994189011,0.89639524,105640.0,105630.0,0.37386953]
[1749994189217,0.89639524,105640.0,105630.0,0.37586953]
[1749994189748,0.89639524,105640.0,105630.0,0.35924838]
[1749994190158,0.90586108,105640.0,105630.0,0.37686936]
[1749994190329,0.90586108,105640.0,105630.0,0.35924838]
[1749994190537,0.34946548,105640.0,105630.0,0.35924838]
[1749994190691,0.36839698,105640.0,105630.0,0.35924838]
[1749994190902,0.35893114,105640.0,105630.0,0.37686955]
[1749994191129,0.89639524,105640.0,105630.0,0.37686955]
[1749994191343,0.88692958,105640.0,105630.0,0.37686829]
[1749994191665,0.88692958,105640.0,105630.0,0.35924838]
[1749994191870,0.89639515,105640.0,105630.0,0.37681734]
[1749994192208,0.9058609,105640.0,105630.0,0.37681734]
[1749994192773,0.9058609,105640.0,105630.0,0.35924838]
[1749994192975,0.9058609,105640.0,105630.0,0.37681721]
[1749994193279,0.9058609,105640.0,105630.0,0.35924838]
[1749994193507,0.9058609,105640.0,105630.0,0.37681717]
[1749994194096,0.9058609,105640.0,105630.0,0.35924838]
[1749994194306,0.89639515,105640.0,105630.0,0.37681717]
[1749994194510,0.35892907,105650.0,105640.0,0.25031947]
[1749994194714,0.90585802,105650.0,105640.0,0.26788597]
[1749994195343,0.90585802,105650.0,105640.0,0.25031947]
[1749994195558,5.95585802,105650.0,105640.0,0.26788539]
[1749994195759,6.25077657,105650.0,105640.0,0.25847284]
[1749994195961,6.24131217,105650.0,105640.0,0.24085399]
[1749994196184,6.2318475,105650.0,105640.0,0.23138824]
[1749994196390,6.22238265,105650.0,105640.0,0.24902335]
[1749994196590,6.12623343,105650.0,105640.0,0.23222866]
[1749994196911,6.12623343,105650.0,105640.0,0.24903155]
[1749994197102,6.12623343,105650.0,105640.0,0.23138824]
[1749994197880,6.1167684,105650.0,105640.0,0.23138824]
[1749994198494,6.2730884,105650.0,105640.0,0.24085417]
[1749994198895,6.2730884,105650.0,105640.0,0.22192222]
[1749994199096,6.2730884,105650.0,105640.0,0.0326]
[1749994199299,6.2730884,105650.0,105640.0,0.0158]
[1749994202156,5.7356243,105650.0,105640.0,0.0158]
[1749994202609,6.2730884,105650.0,105640.0,0.23208824]
[1749994202838,5.74508942,105650.0,105640.0,0.23208833]
[1749994203060,5.7169721,105650.0,105640.0,0.25102028]
[1749994203271,5.71697252,105650.0,105640.0,0.25102028]
[1749994203917,5.71697252,105650.0,105640.0,0.26048612]
[1749994204959,5.71697252,105650.0,105640.0,0.0158]
[1749994207576,5.81312174,105650.0,105640.0,0.0158]
[1749994207789,5.02320724,105640.0,105630.0,0.25054069]
[1749994208014,5.57013691,105640.0,105630.0,0.25054069]
[1749994208257,5.57013691,105640.0,105630.0,0.25054087]